bitfinex-derivatives/quotes_BTCF0:USTF0_20241110
["timestamp","ask_amount","ask_price","bid_price","bid_amount"]
[1731224452421,0.3608,78940.0,78934.0,0.10588]
[1731224454224,0.3608914,78942.0,78935.0,0.19114285]
[1731224454422,0.3608914,78942.0,78935.0,0.24148921]
[1731224454626,0.3608914,78942.0,78936.0,0.05034636]
[1731224454932,0.3608914,78942.0,78935.0,0.05034636]
[1731224455427,0.3608914,78942.0,78936.0,0.05034636]
[1731224455624,0.3608914,78942.0,78935.0,0.05034636]
[1731224455825,0.3608914,78942.0,78935.0,0.24141024]
[1731224456229,0.3608914,78942.0,78935.0,0.05034636]
[1731224456627,0.3608914,78942.0,78934.0,0.49266281]
[1731224456628,0.3608914,78942.0,78937.0,0.05034636]
[1731224457035,9.14e-05,78942.0,78937.0,0.05034636]
[1731224457526,9.14e-05,78942.0,78936.0,0.05034636]
[1731224458727,9.14e-05,78942.0,78937.0,0.05034636]
[1731224459631,9.14e-05,78942.0,78937.0,0.02734636]
[1731224460428,9.14e-05,78942.0,78934.0,0.49266281]
[1731224460729,9.14e-05,78942.0,78935.0,0.19083703]
[1731224461932,0.3608,78940.0,78935.0,0.19083703]
[1731224464531,9.14e-05,78942.0,78935.0,0.19083703]
[1731224464735,0.3608,78941.0,78936.0,0.10376]
[1731224464934,0.0639,78940.0,78936.0,0.10376]
[1731224466629,0.0639,78940.0,78929.0,0.06293812]
[1731224466935,0.4839204,78939.0,78930.0,0.10376]
[1731224467138,0.1231204,78933.0,78930.0,0.10376]
[1731224467336,0.3608,78939.0,78927.0,0.04960066]
[1731224467337,0.3608,78931.0,78927.0,0.04960066]
[1731224467530,0.1231204,78928.0,78927.0,0.04960066]
[1731224473133,0.1231204,78928.0,78921.0,0.10376]
[1731224473340,0.4839204,78922.0,78918.0,0.00190044]
[1731224473535,0.0638,78921.0,78918.0,0.00190044]
[1731224473936,0.0638,78921.0,78918.0,0.05258813]
[1731224474246,0.0638,78921.0,78910.0,0.6509]
[1731224474441,0.1231204,78912.0,78910.0,0.6509]
[1731224474635,0.1231204,78912.0,78910.0,0.6279]
[1731224475548,0.1231204,78912.0,78910.0,0.67842506]
[1731224477346,0.1231204,78912.0,78910.0,0.65542506]
[1731224478545,0.00011626,78911.0,78910.0,0.6049]
[1731224478735,0.36091626,78911.0,78910.0,0.6049]
[1731224482136,0.48403666,78911.0,78893.0,0.00190111]
[1731224482348,0.4839204,78897.0,78893.0,0.00190111]
[1731224482643,0.4839204,78897.0,78896.0,0.07457053]
[1731224482846,0.4839204,78897.0,78896.0,0.02313743]
[1731224483039,0.8641604,78897.0,78896.0,0.02313743]
[1731224483436,0.8641604,78897.0,78893.0,0.05286258]
[1731224483642,0.3608,78894.0,78893.0,0.05286258]
[1731224485141,0.3608,78894.0,78893.0,0.00190111]
[1731224489642,0.1231204,78884.0,78874.0,0.00012224]
[1731224489846,0.3608,78877.0,78874.0,0.00012224]
[1731224491950,0.3608,78877.0,78874.0,0.05173922]
[1731224492149,0.32909662,78877.0,78875.0,0.1911738]
[1731224492343,0.30974462,78877.0,78875.0,0.1911738]
[1731224492848,0.1231204,78891.0,78875.0,0.1911738]
[1731224492849,0.3608,78885.0,78875.0,0.1911738]
[1731224494346,0.3608,78894.0,78880.0,0.1231204]
[1731224494544,0.3608,78894.0,78875.0,0.4911738]
[1731224494545,0.3608,78903.0,78890.0,0.1231204]
[1731224494745,0.3608,78903.0,78896.0,0.1231204]
[1731224494941,0.1231204,78897.0,78891.0,0.1888951]
[1731224495144,0.3608,78896.0,78892.0,0.0321]
[1731224495550,0.36196,78903.0,78892.0,0.0321]
[1731224495747,0.3608,78903.0,78892.0,0.0321]
[1731224497454,0.3608,78903.0,78892.0,0.08177475]
[1731224497747,0.3608,78903.0,78892.0,0.0647]
[1731224499447,0.4839204,78903.0,78892.0,0.0647]
[1731224500451,0.4839204,78903.0,78892.0,0.11556623]
[1731224502554,0.3608,78894.0,78892.0,0.05086623]
[1731224502745,0.3608,78894.0,78888.0,0.1038]
[1731224503146,0.1231204,78891.0,78888.0,0.1038]
[1731224503554,0.3608,78894.0,78888.0,0.1038]
[1731224504042,0.3608,78894.0,78887.0,0.1038]
[1731224504549,0.3608,78894.0,78887.0,0.0808]
[1731224507054,0.3608,78894.0,78888.0,0.18962158]
[1731224507247,0.3608,78901.0,78888.0,0.3756801]
[1731224507450,0.3608,78901.0,78889.0,0.06690011]
[1731224507648,0.3608,78901.0,78889.0,0.06293812]
[1731224507856,0.3608,78901.0,78890.0,0.19054876]
[1731224508254,0.3608,78901.0,78890.0,0.25348688]
[1731224508851,0.3608,78901.0,78890.0,0.19054876]
[1731224509247,0.3608,78901.0,78900.0,0.03790336]
[1731224509451,0.3608,78901.0,78900.0,0.03790401]
[1731224509761,0.3608,78901.0,78900.0,0.03790421]
[1731224510058,0.3608,78901.0,78889.0,0.06293812]
[1731224510249,0.3608,78901.0,78890.0,0.00396192]
[1731224510445,0.3608,78901.0,78890.0,0.18974003]
[1731224512059,0.3608,78901.0,78900.0,0.0379055]
[1731224512259,0.3608,78901.0,78890.0,0.18974003]
[1731224512455,0.3608,78901.0,78900.0,0.03791111]
[1731224512758,0.3608,78901.0,78898.0,0.03791291]
[1731224513053,0.1231204,78899.0,78895.0,0.03791291]
[1731224513262,0.1231204,78896.0,78895.0,0.03791291]
[1731224513453,0.1231204,78896.0,78894.0,0.03791291]
[1731224513653,0.03,78895.0,78894.0,0.03791291]
[1731224514050,0.03,78895.0,78883.0,0.1038]
[1731224514360,0.03,78895.0,78883.0,0.12915547]
[1731224514762,0.03,78895.0,78894.0,0.03791517]
[1731224514955,0.03,78895.0,78894.0,0.03791504]
[1731224515156,0.03,78895.0,78883.0,0.1907544]
[1731224515458,0.3608,78894.0,78883.0,0.1907544]
[1731224516149,0.3608,78894.0,78893.0,0.03791633]
[1731224516852,0.3608,78894.0,78892.0,0.03791633]
[1731224517060,0.3608,78894.0,78891.0,0.03791633]
[1731224517258,0.3608,78894.0,78893.0,0.03791633]
[1731224518160,0.3608,78894.0,78887.0,0.1038]
[1731224519665,0.3608,78894.0,78891.0,0.05058944]
[1731224519962,0.3608,78894.0,78892.0,0.05058944]
[1731224520263,0.3608,78894.0,78887.0,0.0808]
[1731224520464,0.3608,78894.0,78888.0,0.00396205]
[1731224520662,0.3608,78894.0,78889.0,0.00396205]
[1731224520861,0.3608,78894.0,78887.0,0.0808]
[1731224521060,0.3608,78894.0,78888.0,0.00396209]
[1731224521359,0.3608,78894.0,78889.0,0.00396209]
[1731224521563,0.3608,78894.0,78890.0,0.00396199]
[1731224521765,0.3608,78894.0,78887.0,0.0808]
[1731224521964,0.3608,78894.0,78888.0,0.00396202]
[1731224522159,0.3608,78894.0,78887.0,0.0808]
[1731224522367,0.3608,78894.0,78889.0,0.18903745]
[1731224522563,0.3608,78894.0,78889.0,0.06293812]
[1731224522756,0.3608,78894.0,78888.0,0.06293812]
[1731224522956,0.3608,78894.0,78887.0,0.42373812]
[1731224523858,0.3608,78894.0,78887.0,0.3608]
[1731224525157,0.3608,78894.0,78893.0,0.05063046]
[1731224526269,0.3608,78894.0,78891.0,0.05063046]
[1731224526462,0.3608,78894.0,78892.0,0.05063046]
[1731224526865,0.3608,78894.0,78885.0,0.19051779]
[1731224526866,0.3608,78894.0,78891.0,0.05063046]
[1731224527260,0.3608,78894.0,78890.0,0.05063046]
[1731224527457,0.3608,78894.0,78891.0,0.05063046]
[1731224527866,0.3608,78894.0,78890.0,0.05063046]
[1731224528165,0.3608,78894.0,78891.0,0.05063046]
[1731224528663,0.1231204,78892.0,78888.0,0.05063046]
[1731224528861,0.1231204,78892.0,78887.0,0.15439046]
[1731224529258,0.3608,78894.0,78888.0,0.05063046]
[1731224529459,0.3608,78894.0,78876.0,0.1231204]
[1731224529460,0.3608,78894.0,78889.0,0.15439046]
[1731224532164,0.3608,78894.0,78890.0,0.05063046]
[1731224532665,0.3608,78894.0,78891.0,0.05063046]
[1731224533260,0.3608,78894.0,78892.0,0.05063046]
[1731224533460,0.1231204,78893.0,78891.0,0.05063046]
[1731224533668,0.1231204,78893.0,78889.0,0.15439046]
[1731224533860,0.1231204,78893.0,78890.0,0.05063046]
[1731224534266,0.1231204,78893.0,78889.0,0.15439046]
[1731224534468,0.1231204,78893.0,78890.0,0.05063046]
[1731224535470,0.42694001,78898.0,78889.0,0.10376]
[1731224535471,0.00124001,78898.0,78892.0,0.1231204]
[1731224535657,0.3608,78902.0,78894.0,0.06293812]
[1731224535962,0.3608,78902.0,78901.0,0.05065282]
[1731224536154,0.3608,78902.0,78901.0,0.10376]
[1731224536359,0.39277626,78911.0,78901.0,0.41659207]
[1731224536360,0.00127626,78911.0,78901.0,0.41659207]
[1731224536568,0.00127626,78911.0,78908.0,0.05063309]
[1731224536763,0.00127626,78911.0,78909.0,0.05063309]
[1731224536966,0.00011626,78911.0,78909.0,0.05063309]
[1731224537167,0.00011626,78911.0,78910.0,0.18975293]
[1731224537365,0.00011626,78911.0,78910.0,0.24035395]
[1731224537574,0.00011626,78911.0,78910.0,0.05060102]
[1731224537768,0.00011626,78911.0,78910.0,0.24082081]
[1731224538164,0.00011626,78911.0,78910.0,0.21781825]
[1731224538469,0.3608,78926.0,78910.0,0.90817979]
[1731224538669,0.3608,78926.0,78918.0,0.03792586]
[1731224538869,0.3608,78926.0,78917.0,0.17368821]
[1731224539267,0.3608,78926.0,78918.0,0.05056781]
[1731224539570,0.00199999,78919.0,78917.0,0.1231204]
[1731224539771,9.856e-05,78919.0,78917.0,0.17368821]
[1731224540470,9.856e-05,78919.0,78917.0,0.1231204]
[1731224541163,9.856e-05,78919.0,78917.0,0.18520351]
[1731224541364,9.856e-05,78919.0,78918.0,0.18947003]
[1731224541667,5.6e-07,78919.0,78918.0,0.56963003]
[1731224542168,0.34062956,78926.0,78918.0,0.18947003]
[1731224542367,0.3608,78937.0,78925.0,0.1231204]
[1731224542671,0.3608,78937.0,78930.0,0.1231204]
[1731224542974,0.3608,78935.0,78930.0,0.1231204]
[1731224543369,0.00015674,78933.0,78930.0,0.1231204]
[1731224545865,0.00015674,78933.0,78930.0,0.17379821]
[1731224548675,0.3608,78932.0,78930.0,0.15439781]
[1731224549472,0.3608,78932.0,78930.0,0.02767781]
[1731224551778,0.3608,78932.0,78930.0,0.09089522]
[1731224551979,0.3608,78932.0,78930.0,0.02767781]
[1731224555079,0.3608,78931.0,78930.0,0.02767781]
[1731224558486,0.3608,78931.0,78930.0,0.09142849]
[1731224558715,0.3608,78931.0,78930.0,0.02767781]
[1731224560093,0.74088,78931.0,78914.0,0.00190042]
[1731224560295,0.3608,78915.0,78914.0,0.00190042]
[1731224562482,0.3608,78915.0,78914.0,0.06352692]
[1731224563088,0.0621,78930.0,78914.0,0.06352692]
[1731224563282,0.3608,78917.0,78914.0,0.06352692]
[1731224563490,0.3608,78924.0,78914.0,0.06352692]
[1731224564481,0.3608,78924.0,78914.0,0.07836245]
[1731224564687,0.3608,78924.0,78915.0,0.03783553]
[1731224564991,0.3608,78924.0,78914.0,0.03783553]
[1731224565192,0.3608,78924.0,78915.0,0.03783553]
[1731224565495,0.3608,78924.0,78917.0,0.03783553]
[1731224565690,0.3608,78924.0,78912.0,0.21078897]
[1731224565691,0.3608,78924.0,78916.0,0.03783553]
[1731224566390,0.0306,78923.0,78917.0,0.03783553]
[1731224567707,0.0306,78923.0,78916.0,0.03783553]
[1731224568089,0.0306,78923.0,78917.0,0.03783553]
[1731224568289,0.0306,78923.0,78916.0,0.14151553]
[1731224568884,0.0306,78923.0,78916.0,0.03783553]
[1731224570998,0.0306,78923.0,78917.0,0.03783553]
[1731224571193,0.0306,78923.0,78916.0,0.03783553]
[1731224572388,0.3608,78917.0,78916.0,0.03783553]
[1731224572591,0.3608,78917.0,78915.0,0.03783553]
[1731224572895,0.3608,78917.0,78913.0,0.10368]
[1731224573294,0.08096368,78914.0,78913.0,0.10368]
[1731224573598,0.08096368,78914.0,78912.0,0.10368]
[1731224574097,0.08096368,78914.0,78911.0,0.05056781]
[1731224574300,0.0321,78913.0,78909.0,0.15424781]
[1731224574593,0.08096368,78910.0,78909.0,0.15424818]
[1731224574893,0.44176368,78910.0,78909.0,0.06327538]
[1731224575098,0.44176368,78910.0,78908.0,0.05069194]
[1731224576487,0.3608,78910.0,78908.0,0.05069194]
[1731224577405,0.3608,78910.0,78908.0,0.11250003]
[1731224577695,0.3608,78910.0,78908.0,0.05069194]
[1731224579801,0.3608,78910.0,78908.0,0.02769194]
[1731224580597,0.3608,78910.0,78908.0,0.06562033]
[1731224580797,0.3608,78910.0,78909.0,0.03792839]
[1731224581506,0.3608,78910.0,78908.0,0.09093962]
[1731224581803,0.3608,78910.0,78908.0,0.02769194]
[1731224583709,0.3608,78910.0,78908.0,0.06560964]
[1731224584209,0.12339285,78909.0,78908.0,0.06560964]
[1731224586007,0.12339285,78909.0,78908.0,0.12861943]
[1731224587407,0.12339285,78909.0,78908.0,0.09070173]
[1731224588196,0.12339285,78909.0,78908.0,0.12864094]
[1731224588707,0.12339285,78909.0,78908.0,0.09070173]
[1731224589210,0.12339285,78909.0,78908.0,0.12865049]
[1731224589514,0.12339285,78909.0,78908.0,0.09070173]
[1731224590596,0.12339285,78909.0,78908.0,0.12866124]
[1731224590801,0.12339285,78909.0,78908.0,0.09070173]
[1731224592504,0.3608,78910.0,78908.0,0.09070173]
[1731224593603,0.3608,78910.0,78899.0,0.03795947]
[1731224593604,0.3802,78909.0,78899.0,0.03795947]
[1731224593900,0.3608,78900.0,78899.0,0.03796525]
[1731224594096,0.3608,78900.0,78898.0,0.03796525]
[1731224594299,0.0304,78899.0,78893.0,0.15416818]
[1731224594501,0.0304,78899.0,78894.0,0.02756818]
[1731224595101,0.0304,78899.0,78893.0,0.1036]
[1731224595308,0.0304,78899.0,78898.0,0.03795571]
[1731224595700,0.0304,78899.0,78893.0,0.1036]
[1731224597209,0.36196,78900.0,78893.0,0.1036]
[1731224597401,0.3608,78900.0,78896.0,0.12339285]
[1731224597705,0.3608,78910.0,78898.0,0.06293812]
[1731224597913,0.3608,78910.0,78907.0,0.03794668]
[1731224598107,0.3608,78910.0,78899.0,0.15703812]
[1731224598108,0.3608,78910.0,78908.0,0.03794668]
[1731224598304,0.3608,78910.0,78909.0,0.03794668]
[1731224599303,0.3608,78910.0,78906.0,0.1036]
[1731224601015,0.3608,78911.0,78906.0,0.1036]
[1731224601614,0.3608,78911.0,78906.0,0.16622796]
[1731224602018,0.06414335,78927.0,78909.0,0.06293812]
[1731224602019,0.3608,78927.0,78909.0,0.06293812]
[1731224602205,0.3608,78927.0,78922.0,0.12339285]
[1731224602410,0.3608,78927.0,78923.0,0.1661]
[1731224602713,0.3608,78936.0,78923.0,0.35565402]
[1731224602917,0.3608,78936.0,78929.0,0.03793636]
[1731224603314,0.3608,78936.0,78930.0,0.03793636]
[1731224603618,0.3608,78936.0,78931.0,0.03793636]
[1731224603816,0.3608,78936.0,78930.0,0.03793636]
[1731224604221,0.3608,78936.0,78929.0,0.03793636]
[1731224605322,0.3608,78936.0,78927.0,0.03793636]
[1731224605917,0.3608,78936.0,78928.0,0.18882338]
[1731224606422,0.3608,78936.0,78927.0,0.18966509]
[1731224606612,0.3608,78936.0,78925.0,0.39937636]
[1731224606817,0.3608,78936.0,78928.0,0.18966509]
[1731224607215,0.3608,78936.0,78925.0,0.36144]
[1731224607423,0.3608,78936.0,78925.0,0.3608]
[1731224607724,0.3608,78936.0,78926.0,0.1911026]
[1731224608126,0.3608,78936.0,78929.0,0.12339285]
[1731224609620,0.3608,78936.0,78929.0,0.10039285]
[1731224612723,0.3608,78936.0,78926.0,0.0760233]
[1731224613128,0.3608,78936.0,78927.0,0.19127903]
[1731224615029,0.3608,78936.0,78928.0,0.3608]
[1731224616235,0.3608,78936.0,78929.0,0.3608]
[1731224616720,0.3608,78936.0,78930.0,0.10352]
[1731224617124,0.3608,78936.0,78931.0,0.10348]
[1731224618120,0.3608,78941.0,78931.0,0.10348]
[1731224618628,0.12339285,78940.0,78931.0,0.10348]
[1731224619326,0.08092099,78935.0,78931.0,0.10348]
[1731224619727,0.08092099,78935.0,78928.0,0.05067909]
[1731224619728,0.3608,78932.0,78928.0,0.05067909]
[1731224619926,0.08092099,78929.0,78928.0,0.11487099]
[1731224620235,0.08092099,78929.0,78928.0,0.05067909]
[1731224620426,0.46100099,78929.0,78928.0,0.05067909]
[1731224622238,0.38008,78929.0,78928.0,0.05067909]
[1731224623435,0.50343051,78929.0,78928.0,0.05067909]
[1731224624636,0.50343051,78929.0,78928.0,0.02767909]
[1731224624840,0.50343051,78929.0,78926.0,0.11270427]
[1731224625041,0.12335051,78929.0,78926.0,0.11270427]
[1731224628535,0.39444001,78931.0,78926.0,0.11270427]
[1731224628841,0.3608,78931.0,78926.0,0.11270427]
[1731224639753,0.3608,78931.0,78926.0,0.08970427]
[1731224640359,0.3608,78931.0,78926.0,0.12764063]
[1731224640560,0.3608,78931.0,78927.0,0.03793636]
[1731224642155,0.3608,78931.0,78928.0,0.03793636]
[1731224642359,0.3608,78931.0,78927.0,0.03793636]
[1731224644270,0.00015674,78933.0,78927.0,0.06328239]
[1731224645261,0.00015674,78933.0,78932.0,0.08090596]
[1731224646671,0.36095674,78933.0,78932.0,0.08090596]
[1731224650573,0.36095674,78933.0,78932.0,0.18430596]
[1731224652675,0.00015674,78933.0,78932.0,0.1034]
[1731224652872,0.36095674,78933.0,78932.0,0.1034]
[1731224653578,0.36095674,78933.0,78927.0,0.02534603]
[1731224653779,0.08090596,78928.0,78927.0,0.02534603]
[1731224653969,0.08090596,78928.0,78927.0,0.12874603]
[1731224654576,0.08090596,78928.0,78927.0,0.10574603]
[1731224655078,0.08090596,78928.0,78927.0,0.14367044]
[1731224655272,0.36215675,78933.0,78927.0,0.10574603]
[1731224655579,0.36095674,78933.0,78928.0,0.03793428]
[1731224656178,0.36095674,78933.0,78929.0,0.03793428]
[1731224657374,0.36095674,78933.0,78931.0,0.03793428]
[1731224658267,0.36095674,78933.0,78929.0,0.05056588]
[1731224658883,0.36095674,78933.0,78932.0,0.03799247]
[1731224659278,0.36095674,78933.0,78926.0,0.08970427]
[1731224659279,0.36095674,78933.0,78929.0,0.05056588]
[1731224660175,0.36095674,78933.0,78930.0,0.05056588]
[1731224661077,0.36095674,78933.0,78931.0,0.05056588]
[1731224661285,0.36095674,78933.0,78930.0,0.05056588]
[1731224661980,0.36095674,78933.0,78931.0,0.05056588]
[1731224663080,0.36095674,78933.0,78930.0,0.05056588]
[1731224664087,0.36095674,78933.0,78931.0,0.05056588]
[1731224664277,0.00015674,78933.0,78931.0,0.05056588]
[1731224664478,0.00015674,78933.0,78928.0,0.06320735]
[1731224664989,0.00015674,78933.0,78927.0,0.18653213]
[1731224665288,0.00015674,78933.0,78928.0,0.06320735]
[1731224667179,0.00015674,78933.0,78927.0,0.18653213]
[1731224668486,0.00015674,78933.0,78927.0,0.06320735]
[1731224668687,0.00015674,78933.0,78926.0,0.08970427]
[1731224668688,0.00015674,78933.0,78931.0,0.05064231]
[1731224669587,0.00015674,78933.0,78931.0,0.02764231]
[1731224670784,0.00015674,78933.0,78931.0,0.1034]
[1731224671284,0.00015674,78933.0,78926.0,0.08970427]
[1731224671485,0.00015674,78933.0,78927.0,0.1034]
[1731224674589,0.3608,78928.0,78926.0,0.08970427]
[1731224675286,0.3608,78928.0,78927.0,0.03798925]
[1731224675486,0.3608,78928.0,78926.0,0.08970427]
[1731224675685,0.3608,78928.0,78926.0,0.12769352]
[1731224676185,0.3608,78928.0,78926.0,0.08970427]
[1731224677388,0.0809581,78927.0,78926.0,0.08970427]
[1731224680293,0.0809581,78927.0,78926.0,0.02768038]
[1731224682994,0.4610781,78927.0,78926.0,0.02768038]
[1731224684589,0.4610781,78927.0,78926.0,0.00468038]
[1731224688588,0.4932781,78927.0,78909.0,0.1051808]
[1731224688790,0.4417581,78911.0,78909.0,0.1051808]
[1731224689389,0.4417581,78911.0,78909.0,0.0019008]
[1731224691487,0.3608,78910.0,78909.0,0.0019008]
[1731224699599,0.3608,78910.0,78906.0,0.06257025]
[1731224699600,0.3608,78910.0,78906.0,0.04147105]
[1731224699796,0.3608,78910.0,78904.0,0.03792569]
[1731224699996,0.3608,78910.0,78903.0,0.07062569]
[1731224700191,0.3608,78910.0,78904.0,0.11888379]
[1731224700397,0.3608,78910.0,78906.0,0.03792569]
[1731224700699,0.3608,78910.0,78907.0,0.03792569]
[1731224701908,0.3608,78910.0,78906.0,0.03792569]
[1731224702405,0.3608,78910.0,78905.0,0.11888379]
[1731224703004,0.3608,78910.0,78905.0,0.0809581]
[1731224703207,0.3608,78910.0,78906.0,0.03792569]
[1731224703705,0.3608,78910.0,78905.0,0.11888379]
[1731224704097,0.3608,78910.0,78906.0,0.03792569]
[1731224704299,0.3608,78910.0,78907.0,0.03792569]
[1731224705698,0.3608,78910.0,78908.0,0.03792569]
[1731224705894,0.3608,78910.0,78907.0,0.03792569]
[1731224706301,0.3608,78910.0,78908.0,0.03792569]
[1731224706496,0.3608,78910.0,78907.0,0.03792569]
[1731224706712,0.0809581,78908.0,78906.0,0.03796534]
[1731224706898,0.0809581,78907.0,78903.0,0.09590153]
[1731224707102,0.0809581,78907.0,78906.0,0.03796613]
[1731224708203,0.0809581,78907.0,78903.0,0.13387134]
[1731224708397,0.0809581,78907.0,78903.0,0.09590153]
[1731224708603,0.4417581,78907.0,78903.0,0.09590153]
[1731224710407,0.3608,78907.0,78903.0,0.09590153]
[1731224710707,0.3608,78907.0,78905.0,0.0809581]
[1731224710906,0.3608,78907.0,78906.0,0.03796981]
[1731224711107,0.3608,78907.0,78905.0,0.0809581]
[1731224714411,0.3608,78907.0,78903.0,0.09590153]
[1731224714607,0.3608,78907.0,78903.0,0.07290153]
[1731224719111,0.0809581,78906.0,78903.0,0.07290153]
[1731224719409,0.0809581,78906.0,78903.0,0.06320153]
[1731224719616,0.0809581,78906.0,78900.0,0.06327556]
[1731224719817,0.0809581,78906.0,78899.0,0.06327556]
[1731224720408,0.0809581,78906.0,78900.0,0.06327556]
[1731224720611,0.0809581,78906.0,78898.0,0.0944338]
[1731224720612,0.0809581,78906.0,78899.0,0.06327556]
[1731224722012,0.0809581,78906.0,78900.0,0.06327556]
[1731224722314,0.3608,78907.0,78899.0,0.06327556]
[1731224722508,0.3608,78907.0,78901.0,0.0809581]
[1731224723414,0.3608,78907.0,78905.0,0.0809581]
[1731224723712,0.3608,78907.0,78901.0,0.0809581]
[1731224725406,0.3608,78907.0,78903.0,0.02535314]
[1731224726112,0.3608,78907.0,78903.0,0.12855314]
[1731224727215,0.0809581,78908.0,78903.0,0.12855314]
[1731224727615,0.0809581,78908.0,78903.0,0.02535314]
[1731224727918,0.0809581,78908.0,78903.0,0.12855314]
[1731224729617,0.0809581,78908.0,78904.0,0.02767095]
[1731224730316,0.0809581,78908.0,78903.0,0.12855314]
[1731224731125,0.0809581,78908.0,78907.0,0.03800341]
[1731224732619,0.0809581,78908.0,78903.0,0.12855314]
[1731224733019,0.0809581,78908.0,78907.0,0.03800403]
[1731224733421,0.3608,78909.0,78907.0,0.03800403]
[1731224733928,0.4417581,78909.0,78907.0,0.03800403]
[1731224734826,0.4417581,78909.0,78908.0,0.03800403]
[1731224736227,0.4417581,78909.0,78907.0,0.03800403]
[1731224736418,0.4417581,78909.0,78907.0,0.10154782]
[1731224736620,0.4417581,78909.0,78907.0,0.03800403]
[1731224736922,0.4417581,78909.0,78906.0,0.03800403]
[1731224737425,0.4417581,78909.0,78907.0,0.03800403]
[1731224738115,0.4417581,78909.0,78908.0,0.03800403]
[1731224738428,0.3608,78909.0,78903.0,0.19129827]
[1731224738628,0.0809581,78904.0,78903.0,0.19129827]
[1731224739123,0.0809581,78904.0,78903.0,0.16578513]
[1731224740616,0.0809581,78904.0,78903.0,0.06274513]
[1731224740822,0.0809581,78904.0,78902.0,0.03800847]
[1731224741131,0.0809581,78904.0,78900.0,0.10304]
[1731224741421,0.3608,78901.0,78900.0,0.10304]
[1731224742520,0.3608,78901.0,78900.0,0.16749135]
[1731224745922,0.3608,78901.0,78900.0,0.14449135]
[1731224748029,0.3608,78901.0,78900.0,0.06445135]
[1731224748217,0.3608,78901.0,78896.0,0.10304]
[1731224748528,0.1619162,78897.0,78896.0,0.14103119]
[1731224748728,0.1619162,78897.0,78887.0,0.0323]
[1731224748729,0.1619162,78897.0,78895.0,0.03799119]
[1731224748923,0.1421581,78896.0,78894.0,0.03799119]
[1731224749125,0.00012829,78895.0,78890.0,0.03799119]
[1731224749427,0.4417581,78891.0,78886.0,0.03989232]
[1731224749728,0.0809581,78887.0,78886.0,0.1028083]
[1731224749929,0.0809581,78887.0,78886.0,0.03989232]
[1731224750127,0.0809581,78887.0,78886.0,0.00190113]
[1731224753123,0.0809581,78887.0,78880.0,0.06189538]
[1731224753318,0.5227162,78881.0,78874.0,0.0888155]
[1731224753529,0.0809581,78875.0,78874.0,0.05083603]
[1731224755428,0.0809581,78875.0,78874.0,0.1154673]
[1731224755630,0.0809581,78875.0,78874.0,0.05083603]
[1731224758936,0.0634,78880.0,78874.0,0.05083603]
[1731224759137,0.0809581,78875.0,78874.0,0.05083603]
[1731224759729,0.0809581,78875.0,78874.0,0.02783603]
[1731224764739,0.72276,78881.0,78874.0,0.02783603]
[1731224764930,0.7216,78881.0,78875.0,0.0809581]
[1731224765129,0.7216,78881.0,78875.0,0.1431581]
[1731224765431,0.3608,78881.0,78880.0,0.0809581]
[1731224765739,0.3608,78881.0,78875.0,0.0622]
[1731224765740,0.3608,78881.0,78876.0,0.0809581]
[1731224766628,0.36386252,78894.0,78880.0,0.1619162]
[1731224766834,0.36270252,78894.0,78892.0,0.0809581]
[1731224767042,0.44366062,78894.0,78882.0,0.3608]
[1731224767235,0.0809581,78885.0,78882.0,0.3608]
[1731224767431,0.0809581,78885.0,78883.0,0.19068191]
[1731224767831,0.0809581,78885.0,78884.0,0.10292]
[1731224768136,0.4417581,78885.0,78879.0,0.14089947]
[1731224768335,0.0809581,78880.0,78879.0,0.10292]
[1731224769940,0.0809581,78884.0,78879.0,0.10292]
[1731224770534,0.0809581,78880.0,78879.0,0.10292]
[1731224771242,0.3608,78885.0,78879.0,0.10292]
[1731224771243,0.0809581,78884.0,78879.0,0.10292]
[1731224772030,0.3608,78885.0,78879.0,0.10292]
[1731224773241,0.3608,78885.0,78883.0,0.0809581]
[1731224773447,0.44482062,78894.0,78883.0,0.0809581]
[1731224773747,0.44366062,78894.0,78883.0,0.11893757]
[1731224773939,0.44366062,78894.0,78884.0,0.03797947]
[1731224774444,0.44366062,78894.0,78885.0,0.03797947]
[1731224774647,0.36270252,78894.0,78885.0,0.01497947]
[1731224774844,0.36270252,78894.0,78883.0,0.0809581]
[1731224775034,0.0809581,78888.0,78879.0,0.5453181]
[1731224775237,0.0809581,78888.0,78879.0,0.5446781]
[1731224776652,0.0809581,78888.0,78879.0,0.46372]
[1731224781345,0.0809581,78884.0,78879.0,0.46372]
[1731224781546,0.0809581,78884.0,78879.0,0.10292]
[1731224783153,0.0809581,78888.0,78879.0,0.10292]
[1731224785251,0.0809581,78888.0,78876.0,0.02536485]
[1731224785450,0.0809581,78883.0,78877.0,0.10292]
[1731224787045,0.3608,78886.0,78877.0,0.10292]
[1731224787250,0.0809581,78884.0,78877.0,0.10292]
[1731224787446,0.3608,78886.0,78877.0,0.10292]
[1731224787447,0.0809581,78879.0,78877.0,0.10292]
[1731224788657,0.0809581,78883.0,78877.0,0.10292]
[1731224789658,0.0809581,78883.0,78877.0,0.13053485]
[1731224790252,0.0809581,78883.0,78877.0,0.05061485]
[1731224791557,0.0809581,78879.0,78878.0,0.05061485]
[1731224791761,0.0809581,78883.0,78878.0,0.05061485]
[1731224793360,0.0809581,78883.0,78879.0,0.05061485]
[1731224793562,0.0809581,78883.0,78878.0,0.05061485]
[1731224793959,0.0809581,78883.0,78879.0,0.05061485]
[1731224794362,0.0809581,78883.0,78880.0,0.05061485]
[1731224795363,0.0809581,78883.0,78881.0,0.05061485]
[1731224795564,0.39514001,78886.0,78881.0,0.05061485]
[1731224795752,0.3939,78886.0,78881.0,0.05061485]
[1731224796459,0.3939,78886.0,78882.0,0.05061485]
[1731224796668,0.3939,78886.0,78883.0,0.05061485]
[1731224796962,0.3608,78886.0,78882.0,0.05061485]
[1731224797351,0.3608,78886.0,78883.0,0.05061485]
[1731224797551,0.3608,78886.0,78882.0,0.05061485]
[1731224797757,0.3608,78886.0,78883.0,0.05061485]
[1731224798152,0.0809581,78884.0,78882.0,0.05061485]
[1731224799360,0.0809581,78884.0,78880.0,0.05061485]
[1731224799969,0.0809581,78881.0,78879.0,0.05061485]
[1731224800261,0.1111581,78880.0,78874.0,0.02783603]
[1731224800459,0.4417581,78875.0,78874.0,0.02783603]
[1731224801668,0.39104881,78875.0,78874.0,0.02783603]
[1731224804571,0.39104881,78875.0,78874.0,0.00483603]
[1731224808466,0.39104881,78875.0,78874.0,0.05554982]
[1731224808467,0.77140881,78875.0,78874.0,0.05554982]
[1731224808673,0.39104881,78875.0,78874.0,0.05554982]
[1731224808872,0.77140881,78875.0,78874.0,0.05554982]